[Event "Czech-ch U18-20 Open 2022"]
[Site "Spindleruv Mlyn"]
[Date "2022.03.13"]
[Round "1.1"]
[White "Ocelak, Jakub"]
[Black "Mica, Marek"]
[Result "0-1"]
[ECO "A17"]
[WhiteElo "2053"]
[BlackElo "2272"]
[Annotator "ChessBase"]
[PlyCount "44"]
[EventDate "2022.03.10"]
[EventType "tourn"]
[EventCountry "CZE"]
[SourceTitle "playchess.com"]
[Source "ChessBase"]
[SourceQuality "1"]
[TimeControl "40/5400+30:1800+30"]

1. c4 {[%emt 0:00:14]} Nf6 {[%emt 0:00:32]} 2. Nc3 {[%emt 0:00:18]} e6 {[%emt 0:00:20]} 3. Nf3 {[%emt 1:31:28]} d5 {[%emt 0:00:58]} 4. e3 {[%emt 0:00:00]} c5 {[%emt 0:01:53]} 5. cxd5 {[%emt 0:00:00]} Nxd5 {[%emt 0:01:01]} 6. Qc2 {[%emt 0:00:00]} Be7 {[%emt 0:09:08]} 7. b3 {[%emt 0:00:00]} Bf6 {[%emt 0:06:58]} 8. Bb2 {[%emt 0:00:00]} O-O {[%emt 0:09:22]} 9. h4 {[%emt 0:00:00]} b6 {[%emt 0:07:58]} 10. Ng5 {[%emt 0:00:00]} g6 {[%emt 0:00:52]} 11. a3 {[%emt 0:00:00]} h6 {[%emt 0:06:17]} 12. Nf3 {[%emt 0:00:00]} Bb7 {[%emt 0:03:47]} 13. O-O-O {[%emt 0:00:00]} Nd7 {[%emt 0:02:55]} 14. Rh3 {[%emt 0:00:00]} Bg7 {[%emt 0:04:09]} 15. g4 {[%emt 0:00:00]} Qe7 {[%emt 0:01:13]} 16. Be2 {[%emt 0:00:00]} Nxc3 {[%emt 0:09:45]} 17. Bxc3 {[%emt 0:00:00]} e5 {[%emt 0:01:26]} 18. h5 {[%emt 0:00:00]} g5 {[%emt 0:01:31]} 19. Qf5 {[%emt 0:00:00]} e4 {[%emt 0:06:17]} 20. Bc4 {[%emt 0:00:36]} Kh8 {[%emt 0:24:08]} 21. Nxg5 {[%emt 0:07:50]} hxg5 {[%emt 0:00:00]} 22. Qg6 {[%emt 0:00:28]} Ne5 {[%emt 0:00:00]} 0-1

[Event "Czech-ch U18-20 Open 2022"]
[Site "Spindleruv Mlyn"]
[Date "2022.03.13"]
[Round "1.5"]
[White "Gloser, David"]
[Black "Stalmach, Richard"]
[Result "0-1"]
[ECO "B89"]
[WhiteElo "2238"]
[BlackElo "2302"]
[Annotator "ChessBase"]
[PlyCount "84"]
[EventDate "2022.03.10"]
[EventType "tourn"]
[EventCountry "CZE"]
[SourceTitle "playchess.com"]
[Source "ChessBase"]
[SourceQuality "1"]
[TimeControl "40/5400+30:1800+30"]

1. e4 {[%emt 0:00:03]} c5 {[%emt 0:00:08]} 2. Nf3 {[%emt 0:00:07]} d6 {[%emt 0:00:18]} 3. d4 {[%emt 0:00:13]} cxd4 {[%emt 0:00:10]} 4. Nxd4 {[%emt 0:00:07]} Nf6 {[%emt 0:00:10]} 5. Nc3 {[%emt 0:00:08]} Nc6 {[%emt 0:00:07]} 6. Bc4 {[%emt 0:02:27]} e6 {[%emt 0:00:39]} 7. Be3 {[%emt 0:01:23]} Be7 {[%emt 0:00:37]} 8. Qe2 {[%emt 0:01:08]} a6 {[%emt 0:01:02]} 9. O-O-O {[%emt 0:04:38]} O-O {[%emt 0:02:01]} 10. Rhg1 {[%emt 0:10:42]} Qc7 {[%emt 0:04:26]} 11. g4 {[%emt 0:05:04]} b5 {[%emt 0:07:12]} 12. Bb3 {[%emt 0:02:17]} b4 {[%emt 0:00:47]} 13. Nd5 {[%emt 0:07:01]} Nxd5 {[%emt 0:09:29]} 14. Nxc6 {[%emt 0:07:55]} Nxe3 {[%emt 0:07:58]} 15. Nxe7+ {[%emt 0:01:31]} Qxe7 {[%emt 0:00:08]} 16. Qxe3 {[%emt 0:00:07]} a5 {[%emt 0:01:22]} 17. Ba4 {[%emt 0:03:05]} Bb7 {[%emt 0:03:11]} 18. Rd2 {[%emt 0:08:22]} Rfc8 {[%emt 0:10:34]} 19. Rgd1 {[%emt 0:04:20]} Bc6 {[%emt 0:01:19]} 20. Bxc6 {[%emt 0:02:35]} Rxc6 {[%emt 0:00:03]} 21. Rd4 {[%emt 0:01:27]} Rac8 {[%emt 0:10:53]} 22. R1d2 {[%emt 0:01:01]} e5 {[%emt 0:03:37]} 23. Rd5 {[%emt 0:06:05]} a4 {[%emt 0:00:43]} 24. Kb1 {[%emt 0:01:52]} a3 {[%emt 0:06:42]} 25. Qd3 {[%emt 0:01:08]} h5 {[%emt 0:01:11]} 26. gxh5 {[%emt 0:05:43]} Qh4 {[%emt 0:03:14]} 27. Rxd6 {[%emt 0:07:13]} Rxd6 {[%emt 0:00:10]} 28. Qxd6 {[%emt 0:00:04]} Qxe4 {[%emt 0:00:05]} 29. Qd7 {[%emt 0:00:43]} Rc4 {[%emt 0:06:00]} 30. Qd8+ {[%emt 0:02:16]} Kh7 {[%emt 0:00:05]} 31. Qd3 {[%emt 0:00:04]} Kh6 {[%emt 0:02:33]} 32. c3 {[%emt 0:05:25]} Qe1+ {[%emt 0:02:41]} 33. Kc2 {[%emt 0:01:31]} axb2 {[%emt 0:01:28]} 34. Rd1 {[%emt 0:04:17]} Qxc3+ {[%emt 0:04:07]} 35. Qxc3 {[%emt 0:00:19]} bxc3 {[%emt 0:00:03]} 36. Rg1 {[%emt 0:01:37]} e4 {[%emt 0:04:17]} 37. Kb3 {[%emt 0:01:18]} Rc5 {[%emt 0:01:53]} 38. Kc2 {[%emt 0:00:52]} f5 {[%emt 0:02:31]} 39. a4 {[%emt 0:01:33]} f4 {[%emt 0:01:04]} 40. Re1 {[%emt 0:01:00]} Rc4 {[%emt 0:02:01]} 41. Kb3 {[%emt 0:03:11]} Rxa4 {[%emt 0:01:07]} 42. Rb1 {[%emt 0:00:34]} Ra1 {[%emt 0:00:09]} 0-1

[Event "Czech-ch U18-20 Open 2022"]
[Site "Spindleruv Mlyn"]
[Date "2022.03.13"]
[Round "2.1"]
[White "Mica, Marek"]
[Black "Lajbl, Jan"]
[Result "1/2-1/2"]
[ECO "A90"]
[WhiteElo "2272"]
[BlackElo "2218"]
[Annotator "ChessBase"]
[PlyCount "109"]
[EventDate "2022.03.10"]
[EventType "tourn"]
[EventCountry "CZE"]
[SourceTitle "playchess.com"]
[Source "ChessBase"]
[SourceQuality "1"]
[TimeControl "40/5400+30:1800+30"]

1. c4 {[%emt 0:00:03]} e6 {[%emt 0:00:13]} 2. Nf3 {[%emt 0:00:49]} d5 {[%emt 0:00:05]} 3. d4 {[%emt 0:01:11]} c6 {[%emt 0:00:19]} 4. b3 {[%emt 0:05:59]} Bd6 {[%emt 0:03:03]} 5. g3 {[%emt 0:00:30]} f5 {[%emt 0:01:08]} 6. Bg2 {[%emt 0:00:18]} Nf6 {[%emt 0:00:32]} 7. O-O {[%emt 0:00:12]} Qe7 {[%emt 0:01:20]} 8. a4 {[%emt 0:00:33]} a5 {[%emt 0:02:18]} 9. Ba3 {[%emt 0:02:52]} O-O {[%emt 0:01:37]} 10. Bxd6 {[%emt 0:01:05]} Qxd6 {[%emt 0:00:09]} 11. Na3 {[%emt 0:00:18]} Na6 {[%emt 0:04:03]} 12. Nc2 {[%emt 0:01:27]} Ne4 {[%emt 0:03:25]} 13. Ne5 {[%emt 0:02:44]} Nb4 {[%emt 0:03:34]} 14. f3 {[%emt 0:02:09]} Nxc2 {[%emt 0:03:52]} 15. Qxc2 {[%emt 0:00:49]} dxc4 {[%emt 0:05:43]} 16. Rfd1 {[%emt 0:05:31]} cxb3 {[%emt 0:04:10]} 17. Qxb3 {[%emt 0:00:14]} Nf6 {[%emt 0:00:40]} 18. f4 {[%emt 0:01:44]} Nd5 {[%emt 0:12:04]} 19. Rab1 {[%emt 0:04:44]} Rb8 {[%emt 0:08:29]} 20. Rdc1 {[%emt 0:06:10]} Bd7 {[%emt 0:03:12]} 21. Bxd5 {[%emt 0:11:34]} cxd5 {[%emt 0:04:07]} 22. e3 {[%emt 0:04:45]} b6 {[%emt 0:05:08]} 23. Nxd7 {[%emt 0:14:35]} Qxd7 {[%emt 0:00:06]} 24. Qb5 {[%emt 0:00:24]} Qxb5 {[%emt 0:01:02]} 25. Rxb5 {[%emt 0:00:30]} Kf7 {[%emt 0:01:06]} 26. Rc7+ {[%emt 0:01:47]} Kf6 {[%emt 0:01:00]} 27. Kf2 {[%emt 0:04:01]} Rfc8 {[%emt 0:02:47]} 28. Rxb6 {[%emt 0:03:06]} Rxb6 {[%emt 0:00:45]} 29. Rxc8 {[%emt 0:00:09]} Rb2+ {[%emt 0:01:14]} 30. Kf3 {[%emt 0:00:16]} Ra2 {[%emt 0:02:10]} 31. h3 {[%emt 0:03:11]} h5 {[%emt 0:03:31]} 32. g4 {[%emt 0:01:21]} hxg4+ {[%emt 0:02:09]} 33. hxg4 {[%emt 0:00:17]} fxg4+ {[%emt 0:00:15]} 34. Kxg4 {[%emt 0:00:12]} Rxa4 {[%emt 0:00:14]} 35. Rf8+ {[%emt 0:00:56]} Kg6 {[%emt 0:01:48]} 36. f5+ {[%emt 0:00:33]} exf5+ {[%emt 0:00:28]} 37. Rxf5 {[%emt 0:00:12]} Ra3 {[%emt 0:00:54]} 38. Re5 {[%emt 0:01:59]} Rb3 {[%emt 0:01:43]} 39. Kf4 {[%emt 0:00:56]} Rb5 {[%emt 0:00:33]} 40. Re6+ {[%emt 0:01:38]} Kf7 {[%emt 0:04:00]} 41. Ra6 {[%emt 0:30:21]} Ke7 {[%emt 0:43:21]} 42. Ke5 {[%emt 0:01:29]} Rb3 {[%emt 0:00:00]} 43. Ra7+ {[%emt 0:00:00]} Ke8 {[%emt 0:00:00]} 44. Kxd5 {[%emt 0:00:00]} Rxe3 {[%emt 0:00:00]} 45. Rxg7 {[%emt 0:00:00]} Re7 {[%emt 0:00:00]} 46. Rg8+ {[%emt 0:00:00]} Kd7 {[%emt 0:00:00]} 47. Ra8 {[%emt 0:00:00]} Rf7 {[%emt 0:00:00]} 48. Kc5 {[%emt 0:00:00]} Rf5+ {[%emt 0:00:00]} 49. d5 {[%emt 0:00:00]} Rf6 {[%emt 0:00:00]} 50. Rxa5 {[%emt 0:00:00]} Rg6 {[%emt 0:00:00]} 51. Ra7+ {[%emt 0:00:00]} Kd8 {[%emt 0:00:00]} 52. Rh7 {[%emt 0:00:00]} Rf6 {[%emt 0:00:00]} 53. d6 {[%emt 0:00:00]} Rf1 {[%emt 0:00:00]} 54. Kc6 {[%emt 0:00:00]} Rc1+ {[%emt 0:00:00]} 55. Kd5 {[%emt 0:00:00]} 1/2-1/2

[Event "Czech-ch U18-20 Open 2022"]
[Site "Spindleruv Mlyn"]
[Date "2022.03.13"]
[Round "2.3"]
[White "Kusa, Jakub"]
[Black "Gloser, David"]
[Result "1/2-1/2"]
[ECO "B51"]
[WhiteElo "2298"]
[BlackElo "2238"]
[Annotator "ChessBase"]
[PlyCount "119"]
[EventDate "2022.03.10"]
[EventType "tourn"]
[EventCountry "CZE"]
[SourceTitle "playchess.com"]
[Source "ChessBase"]
[SourceQuality "1"]
[TimeControl "40/5400+30:1800+30"]

1. e4 {[%emt 0:00:04]} c5 {[%emt 0:00:23]} 2. Nf3 {[%emt 0:00:11]} d6 {[%emt 0:01:35]} 3. Bb5+ {[%emt 0:00:14]} Nd7 {[%emt 0:01:20]} 4. a4 {[%emt 0:01:17]} Ngf6 {[%emt 0:02:33]} 5. Nc3 {[%emt 0:00:55]} g6 {[%emt 0:01:57]} 6. a5 {[%emt 0:00:49]} Bg7 {[%emt 0:02:49]} 7. a6 {[%emt 0:02:38]} O-O {[%emt 0:04:14]} 8. O-O {[%emt 0:01:37]} Ne8 {[%emt 0:07:11]} 9. d4 {[%emt 0:06:17]} bxa6 {[%emt 0:05:07]} 10. Bxa6 {[%emt 0:01:03]} Bxa6 {[%emt 0:02:45]} 11. Rxa6 {[%emt 0:00:11]} Nc7 {[%emt 0:00:28]} 12. Ra2 {[%emt 0:02:40]} Qb8 {[%emt 0:03:20]} 13. Be3 {[%emt 0:02:44]} Nb5 {[%emt 0:04:31]} 14. Nxb5 {[%emt 0:21:02]} Qxb5 {[%emt 0:00:12]} 15. Qd2 {[%emt 0:05:03]} Qb7 {[%emt 0:04:14]} 16. dxc5 {[%emt 0:04:40]} Nxc5 {[%emt 0:02:20]} 17. Bxc5 {[%emt 0:01:38]} dxc5 {[%emt 0:00:09]} 18. e5 {[%emt 0:00:15]} Rfd8 {[%emt 0:04:08]} 19. Qe3 {[%emt 0:07:03]} Qb6 {[%emt 0:05:36]} 20. Rfa1 {[%emt 0:01:48]} Rab8 {[%emt 0:01:45]} 21. h3 {[%emt 0:01:54]} Rd5 {[%emt 0:13:26]} 22. b3 {[%emt 0:04:11]} c4 {[%emt 0:02:31]} 23. Qxb6 {[%emt 0:00:49]} axb6 {[%emt 0:00:55]} 24. Ra8 {[%emt 0:01:56]} Rxa8 {[%emt 0:02:18]} 25. Rxa8+ {[%emt 0:00:07]} Bf8 {[%emt 0:00:03]} 26. bxc4 {[%emt 0:00:57]} Rc5 {[%emt 0:01:13]} 27. Ra4 {[%emt 0:01:29]} e6 {[%emt 0:03:33]} 28. Kf1 {[%emt 0:02:05]} Kg7 {[%emt 0:04:50]} 29. c3 {[%emt 0:03:03]} g5 {[%emt 0:02:09]} 30. Ke2 {[%emt 0:00:46]} h5 {[%emt 0:02:42]} 31. g4 {[%emt 0:00:36]} hxg4 {[%emt 0:00:50]} 32. hxg4 {[%emt 0:00:05]} Kg6 {[%emt 0:00:12]} 33. Kd3 {[%emt 0:00:59]} Rc8 {[%emt 0:00:56]} 34. Ra6 {[%emt 0:02:11]} Bc5 {[%emt 0:01:24]} 35. Nd4 {[%emt 0:01:41]} Rh8 {[%emt 0:00:58]} 36. f3 {[%emt 0:04:23]} Rh1 {[%emt 0:01:53]} 37. Ra2 {[%emt 0:02:39]} Rf1 {[%emt 0:01:38]} 38. Ke2 {[%emt 0:01:28]} Rh1 {[%emt 0:00:37]} 39. Rd2 {[%emt 0:02:47]} Rc1 {[%emt 0:02:24]} 40. Nb5 {[%emt 0:02:53]} Kg7 {[%emt 0:05:55]} 41. Rd3 {[%emt 0:30:48]} Kg6 {[%emt 0:32:17]} 42. Nd6 {[%emt 0:01:23]} Rc2+ {[%emt 0:01:24]} 43. Kd1 {[%emt 0:01:26]} Ra2 {[%emt 0:00:00]} 44. Ne4 {[%emt 0:00:00]} Ra4 {[%emt 0:00:00]} 45. Rd8 {[%emt 0:00:00]} Rxc4 {[%emt 0:00:00]} 46. Rg8+ {[%emt 0:00:00]} Kh6 {[%emt 0:00:00]} 47. Rxg5 {[%emt 0:00:00]} Be3 {[%emt 0:00:00]} 48. Rh5+ {[%emt 0:00:00]} Kg7 {[%emt 0:00:00]} 49. Ke2 {[%emt 0:00:00]} Bf4 {[%emt 0:00:00]} 50. Kd3 {[%emt 0:00:00]} Ra4 {[%emt 0:00:00]} 51. Nd6 {[%emt 0:00:00]} Ra1 {[%emt 0:00:00]} 52. Ke4 {[%emt 0:00:00]} Bg3 {[%emt 0:00:00]} 53. f4 {[%emt 0:00:00]} Rf1 {[%emt 0:00:00]} 54. Ne8+ {[%emt 0:00:00]} Kg6 {[%emt 0:00:00]} 55. Rh8 {[%emt 0:00:00]} Bxf4 {[%emt 0:00:00]} 56. Rg8+ {[%emt 0:00:00]} Kh6 {[%emt 0:00:00]} 57. Nf6 {[%emt 0:00:57]} Bg5 {[%emt 0:00:00]} 58. Rh8+ {[%emt 0:00:20]} Kg7 {[%emt 0:00:00]} 59. Rg8+ {[%emt 0:00:06]} Kh6 {[%emt 0:00:00]} 60. Rh8+ {[%emt 0:00:30]} 1/2-1/2

[Event "Czech-ch U18-20 Open 2022"]
[Site "Spindleruv Mlyn"]
[Date "2022.03.13"]
[Round "3.3"]
[White "Svanda, Ondrej"]
[Black "Frank, Adam"]
[Result "1-0"]
[ECO "E62"]
[WhiteElo "2303"]
[BlackElo "2270"]
[Annotator "ChessBase"]
[PlyCount "113"]
[EventDate "2022.03.10"]
[EventType "tourn"]
[EventCountry "CZE"]
[SourceTitle "playchess.com"]
[Source "ChessBase"]
[SourceQuality "1"]
[TimeControl "40/5400+30:1800+30"]

1. d4 {[%emt 0:00:04]} Nf6 {[%emt 0:00:04]} 2. c4 {[%emt 0:00:07]} g6 {[%emt 0:00:22]} 3. g3 {[%emt 0:00:08]} Bg7 {[%emt 0:00:05]} 4. Bg2 {[%emt 0:00:04]} O-O {[%emt 0:00:05]} 5. Nf3 {[%emt 0:01:13]} d6 {[%emt 0:00:05]} 6. Nc3 {[%emt 0:00:20]} Nc6 {[%emt 0:00:05]} 7. O-O {[%emt 0:00:24]} Bf5 {[%emt 0:00:03]} 8. b3 {[%emt 0:11:58]} e5 {[%emt 0:00:28]} 9. Bb2 {[%emt 0:28:03]} Re8 {[%emt 0:07:16]} 10. d5 {[%emt 0:04:20]} Ne7 {[%emt 0:13:42]} 11. Ne1 {[%emt 0:00:02]} e4 {[%emt 0:02:36]} 12. f3 {[%emt 0:08:54]} exf3 {[%emt 0:06:58]} 13. exf3 {[%emt 0:01:45]} c6 {[%emt 0:00:39]} 14. dxc6 {[%emt 0:02:08]} Nxc6 {[%emt 0:03:42]} 15. Qd2 {[%emt 0:02:26]} Qa5 {[%emt 0:10:30]} 16. Rd1 {[%emt 0:05:27]} Rad8 {[%emt 0:03:56]} 17. Na4 {[%emt 0:04:07]} Qa6 {[%emt 0:11:44]} 18. Rf2 {[%emt 0:04:34]} d5 {[%emt 0:05:06]} 19. c5 {[%emt 0:00:05]} b5 {[%emt 0:05:19]} 20. cxb6 {[%emt 0:00:17]} d4 {[%emt 0:03:49]} 21. g4 {[%emt 0:02:31]} Be6 {[%emt 0:05:46]} 22. Rc1 {[%emt 0:00:38]} Ne5 {[%emt 0:01:19]} 23. bxa7 {[%emt 0:04:41]} Qxa7 {[%emt 0:01:54]} 24. h3 {[%emt 0:04:00]} Bxg4 {[%emt 0:06:03]} 25. hxg4 {[%emt 0:00:08]} Nexg4 {[%emt 0:00:03]} 26. fxg4 {[%emt 0:00:57]} Nxg4 {[%emt 0:00:06]} 27. Nd3 {[%emt 0:06:31]} Bh6 {[%emt 0:12:15]} 28. Rf4 Qe7 {[%emt 0:00:00]} 29. Re1 {[%emt 0:03:00]} Bxf4 {[%emt 0:00:00]} 30. Qxf4 {[%emt 0:00:10]} Qxe1+ {[%emt 0:00:00]} 31. Nxe1 {[%emt 0:00:05]} Rxe1+ {[%emt 0:00:00]} 32. Bf1 {[%emt 0:00:21]} Ne3 {[%emt 0:00:00]} 33. Qc7 {[%emt 0:04:13]} Rxf1+ {[%emt 0:00:00]} 34. Kh2 {[%emt 0:00:00]} Re8 {[%emt 0:01:44]} 35. Qd7 {[%emt 0:00:01]} Rf8 {[%emt 0:01:37]} 36. Qxd4 {[%emt 0:02:16]} Rf2+ {[%emt 0:00:04]} 37. Kg3 {[%emt 0:00:03]} Nf5+ {[%emt 0:00:03]} 38. Kxf2 {[%emt 0:00:01]} Nxd4 {[%emt 0:00:05]} 39. Bxd4 {[%emt 0:00:01]} Rd8 {[%emt 0:00:06]} 40. Be3 {[%emt 0:00:03]} f5 {[%emt 0:01:31]} 41. Nb6 {[%emt 0:31:49]} Kf7 {[%emt 0:02:10]} 42. a4 {[%emt 0:00:00]} Rd3 {[%emt 0:00:30]} 43. b4 {[%emt 0:00:00]} f4 {[%emt 0:00:48]} 44. Bc5 {[%emt 0:00:00]} g5 {[%emt 0:01:58]} 45. a5 {[%emt 0:00:00]} g4 {[%emt 0:01:40]} 46. Nc4 {[%emt 0:00:00]} g3+ {[%emt 0:02:37]} 47. Kg2 {[%emt 0:00:00]} Rc3 {[%emt 0:00:39]} 48. a6 {[%emt 0:00:00]} Rc2+ {[%emt 0:10:51]} 49. Kf3 {[%emt 0:00:00]} Rc3+ {[%emt 0:00:04]} 50. Kg4 {[%emt 0:00:00]} g2 {[%emt 0:00:04]} 51. a7 {[%emt 0:00:00]} Re3 {[%emt 0:00:32]} 52. Ne5+ {[%emt 0:00:00]} Kf6 {[%emt 0:11:24]} 53. Nf3 {[%emt 0:00:00]} Ra3 {[%emt 0:01:18]} 54. b5 {[%emt 0:00:00]} Ra4 {[%emt 0:00:03]} 55. b6 {[%emt 0:00:00]} h5+ {[%emt 0:00:09]} 56. Kh3 {[%emt 0:00:00]} Kf5 {[%emt 0:01:09]} 57. b7 {[%emt 0:00:00]} 1-0

[Event "Czech-ch U18-20 Open 2022"]
[Site "Spindleruv Mlyn"]
[Date "2022.03.13"]
[Round "3.4"]
[White "Gloser, David"]
[Black "Hlavina, Matous"]
[Result "1/2-1/2"]
[ECO "C02"]
[WhiteElo "2238"]
[BlackElo "2112"]
[Annotator "ChessBase"]
[PlyCount "64"]
[EventDate "2022.03.10"]
[EventType "tourn"]
[EventCountry "CZE"]
[SourceTitle "playchess.com"]
[Source "ChessBase"]
[SourceQuality "1"]
[TimeControl "40/5400+30:1800+30"]

1. e4 {[%emt 0:00:03]} e6 {[%emt 0:00:04]} 2. d4 {[%emt 0:00:05]} d5 {[%emt 0:00:05]} 3. e5 {[%emt 0:00:04]} c5 {[%emt 0:00:19]} 4. c3 {[%emt 0:00:04]} Nc6 {[%emt 0:00:03]} 5. Nf3 {[%emt 0:00:04]} Qb6 {[%emt 0:00:07]} 6. Bd3 {[%emt 0:00:06]} cxd4 {[%emt 0:01:00]} 7. O-O {[%emt 0:00:06]} Bd7 {[%emt 0:02:16]} 8. Re1 {[%emt 0:02:32]} a6 {[%emt 0:03:20]} 9. Nbd2 {[%emt 0:03:47]} Nge7 {[%emt 0:17:25]} 10. h4 {[%emt 0:04:53]} h6 {[%emt 0:10:27]} 11. h5 {[%emt 0:02:39]} O-O-O {[%emt 0:03:18]} 12. Nb3 {[%emt 0:06:35]} Kb8 {[%emt 0:04:14]} 13. a4 {[%emt 0:16:11]} a5 {[%emt 0:06:27]} 14. Rb1 {[%emt 0:08:22]} g5 {[%emt 0:09:57]} 15. Nfxd4 {[%emt 0:08:11]} Nxd4 {[%emt 0:09:21]} 16. Nxd4 {[%emt 0:00:03]} Nc6 {[%emt 0:02:57]} 17. Nxc6+ {[%emt 0:14:05]} Bxc6 {[%emt 0:02:21]} 18. b4 {[%emt 0:01:13]} d4 {[%emt 0:02:16]} 19. b5 {[%emt 0:03:16]} Be8 {[%emt 0:00:37]} 20. c4 {[%emt 0:01:36]} Qc7 {[%emt 0:03:48]} 21. f4 {[%emt 0:06:13]} gxf4 {[%emt 0:01:20]} 22. Qf3 {[%emt 0:00:17]} Rg8 {[%emt 0:02:08]} 23. Bxf4 {[%emt 0:02:02]} b6 {[%emt 0:00:46]} 24. Bh2 {[%emt 0:04:57]} Be7 {[%emt 0:01:15]} 25. Rb2 {[%emt 0:01:34]} Bg5 {[%emt 0:01:13]} 26. Bf4 {[%emt 0:01:01]} f5 {[%emt 0:02:31]} 27. Bh2 {[%emt 0:03:25]} Qb7 {[%emt 0:01:29]} 28. Qh3 {[%emt 0:01:21]} Qf7 {[%emt 0:01:09]} 29. Be2 {[%emt 0:01:01]} Be3+ {[%emt 0:01:49]} 30. Kh1 {[%emt 0:01:37]} Bd7 {[%emt 0:01:21]} 31. Qf3 {[%emt 0:02:53]} Qg7 {[%emt 0:03:32]} 32. Bd3 {[%emt 0:01:13]} Bc8 {[%emt 0:01:05]} 1/2-1/2

[Event "Czech-ch U18-20 Open 2022"]
[Site "Spindleruv Mlyn"]
[Date "2022.03.13"]
[Round "3.6"]
[White "Lajbl, Jan"]
[Black "Stalmach, Richard"]
[Result "1-0"]
[ECO "B91"]
[WhiteElo "2218"]
[BlackElo "2302"]
[Annotator "ChessBase"]
[PlyCount "69"]
[EventDate "2022.03.10"]
[EventType "tourn"]
[EventCountry "CZE"]
[SourceTitle "playchess.com"]
[Source "ChessBase"]
[SourceQuality "1"]
[TimeControl "40/5400+30:1800+30"]

1. e4 {[%emt 0:00:01]} c5 {[%emt 0:00:06]} 2. Nf3 {[%emt 0:00:07]} d6 {[%emt 0:00:06]} 3. d4 {[%emt 0:00:16]} cxd4 {[%emt 0:00:05]} 4. Nxd4 {[%emt 0:00:07]} Nf6 {[%emt 0:00:06]} 5. Nc3 {[%emt 0:00:02]} a6 {[%emt 0:00:05]} 6. g3 {[%emt 0:00:48]} e5 {[%emt 0:00:14]} 7. Nde2 {[%emt 0:00:11]} Be7 {[%emt 0:00:26]} 8. Bg2 {[%emt 0:00:09]} b5 {[%emt 0:00:04]} 9. a3 {[%emt 0:01:54]} Nbd7 {[%emt 0:06:17]} 10. h3 {[%emt 0:02:23]} Bb7 {[%emt 0:02:02]} 11. g4 {[%emt 0:01:35]} Nb6 {[%emt 0:15:43]} 12. Ng3 {[%emt 0:07:14]} g6 {[%emt 0:08:40]} 13. Bh6 {[%emt 0:08:22]} Nfd7 {[%emt 0:07:05]} 14. O-O {[%emt 0:10:46]} Rc8 {[%emt 0:02:16]} 15. f4 {[%emt 0:12:52]} exf4 {[%emt 0:07:36]} 16. Bxf4 {[%emt 0:02:21]} Ne5 {[%emt 0:01:56]} 17. Nd5 {[%emt 0:05:22]} O-O {[%emt 0:01:00]} 18. Nxe7+ {[%emt 0:10:27]} Qxe7 {[%emt 0:00:05]} 19. Qd4 {[%emt 0:00:43]} Na4 {[%emt 0:04:07]} 20. Rf2 {[%emt 0:05:13]} Rc4 {[%emt 0:28:28]} 21. Qe3 {[%emt 0:04:55]} Nxb2 {[%emt 0:00:02]} 22. Bh6 {[%emt 0:01:24]} Rfc8 {[%emt 0:00:14]} 23. Bg5 {[%emt 0:01:47]} Qe8 {[%emt 0:01:22]} 24. Qf4 {[%emt 0:05:15]} Na4 {[%emt 0:02:47]} 25. Rd1 {[%emt 0:08:01]} d5 {[%emt 0:06:04]} 26. Bf6 {[%emt 0:03:08]} Nd7 {[%emt 0:00:07]} 27. Nf5 {[%emt 0:00:38]} Nxf6 {[%emt 0:01:44]} 28. Nh6+ {[%emt 0:00:30]} Kf8 {[%emt 0:00:03]} 29. Qxf6 {[%emt 0:00:07]} Nc3 {[%emt 0:03:28]} 30. Rdf1 {[%emt 0:02:00]} Nxe4 {[%emt 0:01:33]} 31. Qxf7+ {[%emt 0:02:47]} Qxf7 {[%emt 0:00:04]} 32. Rxf7+ {[%emt 0:00:04]} Ke8 {[%emt 0:00:03]} 33. Rxb7 {[%emt 0:00:12]} Rxc2 {[%emt 0:00:16]} 34. Rff7 {[%emt 0:01:02]} Ng5 {[%emt 0:00:37]} 35. Rg7 {[%emt 0:00:27]} 1-0